Cogmind - Beta 14 @@@ ROGUE MODE // 2024.09.25 @ 14:56:44 // Winter2019/RPGLIKE Player: Necroptosis Result: Destroyed by B-75 Beast with Heavy Machine Gun Performance ------------- Evolutions (5) 2500 Regions Visited (15) 3000 Robots Destroyed (286) 1430 Value Destroyed (10952) 10952 Prototype IDs (18) 360 Alien Tech Used (0) 0 Bonus (5182) 5182 TOTAL SCORE: 23424 Bonus ------- High Alert Combat Kills 1665 Entered Garrisons 1200 Used RIF Installer 2500 Friendly Fire -183 Cogmind --------- Core Integrity 0/1400 Matter 74/300 Energy 54/150 System Corruption 0% Temperature Cool (0) Movement Flying (45) Location -5/Garrison Parts ------- > --- POWER (1) -------- (None) > --- PROPULSION (2) --- Impulse Thruster Array > --- UTILITY (6) ------ Improved Signal Interpreter Weapon Mount System Shield Relay Coupler [Grunt] (82) > --- WEAPON (3) ------- Compact HERF Cannon > --- INVENTORY (5) ---- Relay Coupler [NC] (94) Field Laser Autogun Long-range Missile Launcher Plasma Cutter Peak State ------------ > --- POWER ------------ Light Angular Momentum Engine > --- PROPULSION ------- Impulse Thruster Array > --- UTILITY ---------- Improved Signal Interpreter Weapon Mount System Shield Relay Coupler [Grunt] Relay Coupler [Grunt] > --- WEAPON ----------- Compact HERF Cannon Long-range Missile Launcher Improved Remote Datajack > --- INVENTORY -------- Relay Coupler [NC] Field Laser Autogun Plasma Cutter [Rating: 57] Favorites ----------- Power Ion Engine Engine Ion Engine Propulsion Light Treads Treads Light Treads Flight Unit Improved Flight Unit Utility Improved Terrain Scanner Device Improved Terrain Scanner Processor Signal Interpreter Hackware Hacking Suite Protection Layered Light Armor Plating Weapon Assault Rifle Energy Gun Plasma Rifle Energy Cannon Compact HERF Cannon Ballistic Gun Assault Rifle Launcher Long-range Missile Launcher Special Weapon Improved Remote Datajack Build | -11 -10 -9 -9 -8 -8 -8 -8 -7 -7 -7 -7 -6 -6 -5 -5 ------- Run | Yrd Mat Mat Min Mat Gar Mat Gar Fac Gar Fac Gar Fac Gar Fac Gar Slots Evolved 8 | 3 . 2 . 1 . . . . . . . 1 . 1 . Power . | . . . . . . . . . . . . . . . . Propulsion 1 | 1 . . . . . . . . . . . . . . . Utility 5 | 1 . 2 . 1 . . . . . . . . . 1 . Weapon 2 | 1 . . . . . . . . . . . 1 . . . Parts Attached 128 | 8 15 31 6 17 14 . 10 . 4 1 7 2 8 . 5 Power 5 | 2 . 1 . 1 . . . . . . 1 . . . . Engine 5 | 2 . 1 . 1 . . . . . . 1 . . . . Core . | . . . . . . . . . . . . . . . . Reactor . | . . . . . . . . . . . . . . . . Propulsion 15 | 2 2 6 . 1 2 . . . 1 . . . 1 . . Treads 2 | 2 . . . . . . . . . . . . . . . Leg . | . . . . . . . . . . . . . . . . Wheel . | . . . . . . . . . . . . . . . . Hover . | . . . . . . . . . . . . . . . . Flight 13 | . 2 6 . 1 2 . . . 1 . . . 1 . . Utility 17 | 2 1 3 . 3 2 . 2 . . 1 . 1 1 . 1 Device 8 | 2 . 1 . 1 1 . 2 . . . . 1 . . . Storage . | . . . . . . . . . . . . . . . . Processor 3 | . 1 1 . 1 . . . . . . . . . . . Hackware 4 | . . 1 . . . . . . . 1 . . 1 . 1 Protection 2 | . . . . 1 1 . . . . . . . . . . Artifact . | . . . . . . . . . . . . . . . . Weapon 91 | 2 12 21 6 12 10 . 8 . 3 . 6 1 6 . 4 Energy Gun 27 | 2 . . . 8 6 . 4 . 2 . 3 1 1 . . Energy Cannon 8 | . . 2 . 2 2 . . . . . . . . . 2 Ballistic Gun 23 | . 7 12 3 . . . . . . . . . 1 . . Ballistic Cannon . | . . . . . . . . . . . . . . . . Launcher 22 | . 5 7 3 2 . . 1 . . . 1 . 2 . 1 Special Weapon 11 | . . . . . 2 . 3 . 1 . 2 . 2 . 1 Impact Weapon . | . . . . . . . . . . . . . . . . Slashing Weapon . | . . . . . . . . . . . . . . . . Piercing Weapon . | . . . . . . . . . . . . . . . . Special Melee Weapon . | . . . . . . . . . . . . . . . . Unidentified Prototypes 5 | . . 2 . 2 . . . . . . . 1 . . . Parts Lost 8 | . . . . . . . . . 1 . 1 . 3 . 3 Power 1 | . . . . . . . . . . . . . . . 1 Propulsion . | . . . . . . . . . . . . . . . . Utility 4 | . . . . . . . . . 1 . 1 . 1 . 1 Weapon 3 | . . . . . . . . . . . . . 2 . 1 Highest Loss Streak 3 | . . . . . . . . . 1 . 1 . 3 . 3 To Critical Strikes . | . . . . . . . . . . . . . . . . Average Slot Usage (%) 95 | . 99 98 100 99 99 90 90 90 89 89 84 79 81 . 64 Engine 11 | . 14 11 11 10 10 10 10 10 10 10 10 9 9 . 4 Treads 10 | . 27 . . . . . . . . . . . . . . Flight 9 | . . 23 22 19 19 10 10 10 10 10 10 9 8 . 8 Device 17 | . 15 19 22 20 20 20 20 20 19 10 10 16 13 . 8 Processor 11 | . 12 15 11 10 10 10 10 10 10 10 10 9 9 . 8 Hackware 6 | . . 3 11 10 10 10 10 10 10 19 20 18 18 . 19 Protection 3 | . . . . 9 10 10 10 10 10 10 4 . . . . Energy Gun 7 | . . . . 17 19 20 17 20 19 20 18 18 9 . . Ballistic Gun 14 | . 27 22 19 1 . . . . . . . . 3 . . Peak Build Rating 57 | 9 9 21 21 33 42 42 44 43 45 47 49 50 55 47 57 Average Rating 23 | 4 8 17 20 30 34 42 41 43 43 46 45 48 48 47 46 On Entrance 33 | . 9 9 21 21 33 42 42 43 43 44 47 45 50 47 47 Naked Turns . | . . . . . . . . . . . . . . . . Heaviest Build 28 | 9 11 15 15 22 22 21 25 21 21 20 24 24 28 25 25 Greatest Support 50 | 40 50 20 20 25 28 28 28 28 30 30 30 30 31 31 31 Greatest Overweight (x) . | . . . . . . . . . . . . . . . . Average Overweight (x) . | . . . . . . . . . . . . . . . . Largest Inventory Capacity 5 | 2 3 3 3 4 4 4 5 5 5 5 5 5 5 5 5 Average Capacity 3 | 2 2 3 3 3 4 4 4 5 5 5 5 5 5 5 5 Most Carried 5 | 2 2 3 3 4 4 4 5 5 5 5 5 5 5 5 5 Average Carried 3 | 1 1 2 3 2 3 4 4 5 4 5 5 5 3 5 4 Final Capacity 5 | 2 3 3 3 4 4 4 5 5 5 5 5 5 5 5 5 Final Carried 5 | 2 2 3 3 4 4 4 5 5 5 5 5 5 5 5 5 Class Distribution -------------------- 54% | Hacker-Mutant 21% | Hacker-Scout 15% | Mutant 6% | Wizard-Mutant Dominant Class ---------------- Hacker-Mutant | -10/Materials Hacker-Scout | -9/Materials Hacker-Scout | -9/Mines Hacker-Scout | -8/Materials Hacker-Mutant | -8/Garrison Hacker-Mutant | -8/Materials Hacker-Mutant | -8/Garrison Hacker-Mutant | -7/Factory Hacker-Mutant | -7/Garrison Wizard-Mutant | -7/Factory Wizard-Mutant | -7/Garrison Wizard-Mutant | -6/Factory Hacker-Gunner | -6/Garrison Hacker-Mutant | -5/Factory Hacker-Mutant | -5/Garrison Resources | -11 -10 -9 -9 -8 -8 -8 -8 -7 -7 -7 -7 -6 -6 -5 -5 ----------- Run | Yrd Mat Mat Min Mat Gar Mat Gar Fac Gar Fac Gar Fac Gar Fac Gar Matter Collected 3419 | 129 778 1099 98 461 150 . 127 24 44 . 128 . 325 . 56 Remotely . | . . . . . . . . . . . . . . . . Salvage Created 8692 | 79 791 1280 219 1361 918 660 833 24 683 20 774 . 882 . 168 Parts 524 | 10 66 102 25 64 44 41 47 . 35 3 47 . 34 . 6 Haulers Intercepted 12 | . 2 5 . 5 . . . . . . . . . . . Recyclers Shooed 2 | . 2 . . . . . . . . . . . . . . Parts Field Recycled . | . . . . . . . . . . . . . . . . Retrieved Matter . | . . . . . . . . . . . . . . . . Parts Self-Destructed . | . . . . . . . . . . . . . . . . Prevented . | . . . . . . . . . . . . . . . . Kills | -11 -10 -9 -9 -8 -8 -8 -8 -7 -7 -7 -7 -6 -6 -5 -5 ------- Run | Yrd Mat Mat Min Mat Gar Mat Gar Fac Gar Fac Gar Fac Gar Fac Gar Combat Hostiles Destroyed 294 | . 24 38 20 25 29 12 24 . 22 . 24 1 62 . 13 Guns 178 | . 16 21 4 21 28 12 21 . 20 . 19 1 15 . . Cannons 3 | . . . . . . . . . . . . . . . 3 AOE 109 | . 8 17 16 4 . . 3 . . . 5 . 46 . 10 Classes Destroyed 17 | 1 7 2 1 3 1 . 1 . 1 . . . . . . Worker 2 | . 1 . . 1 . . . . . . . . . . . Builder 3 | . 1 . . 2 . . . . . . . . . . . Tunneler 3 | 3 . . . . . . . . . . . . . . . Hauler 12 | . 2 5 . 5 . . . . . . . . . . . Recycler 3 | . 1 . . 2 . . . . . . . . . . . Operator 4 | . . 2 . 1 . . . . . 1 . . . . . Watcher 17 | . 3 5 . 5 . 3 . 1 . . . . . . . Swarmer 92 | . 9 18 6 3 6 2 9 . 8 . 14 . 10 . 7 Cutter 5 | . . . . . 2 . . . . . . . . . 3 Grunt 98 | . 15 10 2 8 18 6 11 . 8 . 9 1 7 . 3 Brawler 4 | . . . . 2 . 1 . . . . . . 1 . . Duelist 2 | . . . . 1 . . . . 1 . . . . . . Sentry 29 | . . 10 2 8 . 3 3 . 2 . . . 1 . . Hunter 7 | . . . . 3 3 . . . . . . . 1 . . Programmer 4 | . . . . . . . . . 3 . 1 . . . . Behemoth 1 | . . . . . . . 1 . . . . . . . . Assembled 53 | . . . 10 . . . . . . . . . 43 . . Best Kill Streak 42 | 2 3 7 10 13 10 8 8 1 10 1 15 1 42 . 10 Combat Bots Only 42 | . 3 5 10 4 10 6 8 . 10 . 15 1 42 . 10 Max Kills in Single Turn 9 | 2 3 4 3 3 3 2 3 1 2 1 3 1 9 . 4 Gunslinging 1 | . . . . . 1 1 1 . 1 . 1 . 1 . . Exploded 9 | . 3 4 3 2 . . 3 . . . 3 . 9 . 4 Melee . | . . . . . . . . . . . . . . . . Uniques/NPCs Destroyed . | . . . . . . . . . . . . . . . . Combat | -11 -10 -9 -9 -8 -8 -8 -8 -7 -7 -7 -7 -6 -6 -5 -5 -------- Run | Yrd Mat Mat Min Mat Gar Mat Gar Fac Gar Fac Gar Fac Gar Fac Gar Hostile Shots Fired 1090 | . 107 116 26 65 109 21 93 . 149 . 110 1 232 . 61 Missed 488 | . 29 51 17 34 45 9 49 . 74 . 36 . 112 . 32 Damage Taken 7962 | . 997 854 122 584 925 175 516 . 813 . 987 17 1445 . 527 Core 6125 | . 786 699 105 384 663 122 373 . 608 . 751 13 1166 . 455 Absorbed by Shields 107 | . . . . . 26 . . . . . 81 . . . . Redirected to Core 4571 | . 668 536 62 282 495 82 289 . 393 . 537 13 965 . 249 Ignored by Resistances 541 | . . . . . . . 21 . 63 . 72 3 286 . 96 Core Remaining (%) 71 | 100 72 . 82 . . . 92 . . . 55 . 25 . . Volleys Fired 630 | 3 112 112 18 71 48 25 48 4 59 8 34 1 62 . 25 Largest 2 | 2 2 2 2 2 2 2 2 2 2 2 2 2 2 . 1 Hottest 169 | 80 40 46 53 160 160 150 150 150 150 169 169 169 169 . 94 Shots Fired 1137 | 6 217 204 26 133 91 49 95 8 108 13 65 2 95 . 25 Gun 1036 | 6 210 184 15 120 88 49 93 8 108 13 63 2 77 . . Cannon 21 | . . . . 4 3 . . . . . . . . . 14 Launcher 76 | . 7 20 11 9 . . 2 . . . 2 . 14 . 11 Special 4 | . . . . . . . . . . . . . 4 . . Kinetic 440 | . 210 184 15 12 . . . . . . . . 19 . . Thermal 603 | 6 . . . 112 91 49 93 8 108 13 63 2 58 . . Explosive 76 | . 7 20 11 9 . . 2 . . . 2 . 14 . 11 Electromagnetic 14 | . . . . . . . . . . . . . . . 14 Robot Hit Streak 37 | 2 12 13 6 19 37 12 26 17 16 5 20 4 35 . 15 Robot Miss Streak 8 | 2 6 3 3 8 7 2 3 3 2 2 1 . 1 . 1 Penetration Max . | . . . . . . . . . . . . . . . . Secondary Targets 36 | . 2 . 1 3 10 2 4 . 4 . 4 . 6 . . Max Gunslinging Chain 1 | . 1 . 1 1 1 1 1 . 1 . 1 . 1 . . Shots Hit Robots 810 | 3 128 126 12 112 79 34 72 4 76 7 51 2 83 . 21 Core Hits 546 | 3 51 72 27 92 82 16 32 1 25 2 30 2 94 . 17 Critical Kills . | . . . . . . . . . . . . . . . . Critical Parts Destroyed 3 | . 2 1 . . . . . . . . . . . . . Critical Strikes 29 | . 2 1 . . . 4 8 . 7 . 2 . 4 . 1 Burn 25 | . . . . . . 4 8 . 7 . 2 . 4 . . Destroy 3 | . 2 1 . . . . . . . . . . . . . Corrupt 1 | . . . . . . . . . . . . . . . 1 Melee Attacks . | . . . . . . . . . . . . . . . . Impact . | . . . . . . . . . . . . . . . . Slashing . | . . . . . . . . . . . . . . . . Piercing . | . . . . . . . . . . . . . . . . Sneak Attacks . | . . . . . . . . . . . . . . . . Combat Hostiles . | . . . . . . . . . . . . . . . . Follow-up Attacks . | . . . . . . . . . . . . . . . . Damage Inflicted 27617 | 41 1847 2963 1035 3459 2560 1016 2490 149 2445 217 2044 61 5415 . 1875 Guns 17772 | 41 1324 1768 178 2533 2560 1016 2188 149 2445 217 1595 61 1697 . . Cannons 442 | . . . . 43 . . . . . . . . . . 399 Explosions 9403 | . 523 1195 857 883 . . 302 . . . 449 . 3718 . 1476 Melee . | . . . . . . . . . . . . . . . . Ramming . | . . . . . . . . . . . . . . . . Kinetic 3595 | . 1324 1768 178 111 . . . . . . . . 214 . . Thermal 14220 | 41 . . . 2465 2560 1016 2188 149 2445 217 1595 61 1483 . . Explosive 9403 | . 523 1195 857 883 . . 302 . . . 449 . 3718 . 1476 Electromagnetic 399 | . . . . . . . . . . . . . . . 399 Impact . | . . . . . . . . . . . . . . . . Slashing . | . . . . . . . . . . . . . . . . Piercing . | . . . . . . . . . . . . . . . . Highest Corruption 5 | . 1 . . 5 5 5 5 . 1 1 1 . . . . Average Corruption 3 | . 1 . . 5 5 5 5 . 1 1 1 . . . . Corruption Purged . | . . . . . . . . . . . . . . . . Corruption Blocked . | . . . . . . . . . . . . . . . . Effects 60 | . 7 . . 16 16 4 14 . 2 . 1 . . . . Message Errors 15 | . 3 . . 1 7 . 3 . 1 . . . . . . Matter Fused 9 | . . . . 3 1 . 4 . . . 1 . . . . Heat Flow Errors 7 | . 1 . . 3 3 . . . . . . . . . . Energy Discharges 12 | . 1 . . 6 2 1 2 . . . . . . . . Parts Rejected 1 | . . . . 1 . . . . . . . . . . . Data Loss (minor) 5 | . 1 . . 1 . 1 2 . . . . . . . . Data Loss (major) 5 | . . . . 1 1 1 2 . . . . . . . . Misfires 2 | . . . . . . . 1 . 1 . . . . . . Alerts 2 | . 1 . . . 1 . . . . . . . . . . Weapon Failures 2 | . . . . . 1 1 . . . . . . . . . Overload Shots . | . . . . . . . . . . . . . . . . Overflow Damage 487 | . 45 63 13 26 . . . . . . . . 168 . 172 Projectiles 13 | . . . . 2 . . . . . . . . . . 11 Explosions 474 | . 45 63 13 24 . . . . . . . . 168 . 161 Melee . | . . . . . . . . . . . . . . . . Knockbacks . | . . . . . . . . . . . . . . . . Impact . | . . . . . . . . . . . . . . . . Kinetic . | . . . . . . . . . . . . . . . . Secondary . | . . . . . . . . . . . . . . . . Self-Inflicted Damage 310 | . 112 49 . 76 . . . . . . . . 45 . 28 Shots 8 | . 1 3 . 2 . . . . . . . . 1 . 1 Rammed . | . . . . . . . . . . . . . . . . Targets Rammed . | . . . . . . . . . . . . . . . . Kicked . | . . . . . . . . . . . . . . . . Crushed . | . . . . . . . . . . . . . . . . Highest Temperature 280 | 36 208 15 . 201 280 42 42 42 42 . 64 177 43 . . Average Temperature 33 | 18 23 7 . 81 58 12 7 34 9 . 26 114 16 . . Received Heat Transfer 2568 | . 405 276 36 207 477 117 159 . 240 . 171 9 396 . 75 Siege Activations . | . . . . . . . . . . . . . . . . Robots Corrupted . | . . . . . . . . . . . . . . . . Combat Hostiles . | . . . . . . . . . . . . . . . . Parts Fried 3 | . . . . . . . . . . . . . . . 3 Impact Corruptions . | . . . . . . . . . . . . . . . . Robots Melted 6 | . . . . . 3 . . . 2 . . . 1 . . Combat Hostiles 4 | . . . . . 1 . . . 2 . . . 1 . . Parts Melted 61 | . . . . 12 10 2 13 1 13 . 2 . 8 . . Heat Transferred 26915 | 100 . . . 5374 4925 2150 4375 250 4347 298 2412 87 2597 . . Parts Sabotaged . | . . . . . . . . . . . . . . . . Parts Stolen . | . . . . . . . . . . . . . . . . Parts Stripped . | . . . . . . . . . . . . . . . . Power Chain Reactions . | . . . . . . . . . . . . . . . . Alert | -11 -10 -9 -9 -8 -8 -8 -8 -7 -7 -7 -7 -6 -6 -5 -5 ------- Run | Yrd Mat Mat Min Mat Gar Mat Gar Fac Gar Fac Gar Fac Gar Fac Gar Peak Influence 1410 | 15 277 651 615 372 971 912 1410 761 1022 557 694 307 654 343 672 Initial 739 | . 9 117 253 239 206 460 592 739 532 536 10 291 18 343 240 Average 342 | 5 83 376 419 211 696 714 1029 750 755 226 362 171 363 343 472 Maximum Alert Level 4 | . 1 2 2 1 3 3 4 3 3 2 2 1 2 1 2 Low Security (%) 45 | 100 87 19 . 45 . . . . . 61 37 47 24 . . Level 1 20 | . 12 30 56 54 20 . . . . . 13 52 29 100 47 Level 2 19 | . . 50 43 . 27 51 12 . 43 38 49 . 45 . 52 Level 3 11 | . . . . . 51 48 45 100 56 . . . . . . Level 4 3 | . . . . . . . 42 . . . . . . . . Level 5 . | . . . . . . . . . . . . . . . . High Security . | . . . . . . . . . . . . . . . . Max Security . | . . . . . . . . . . . . . . . . Squads Dispatched 17 | . 6 4 . 4 . 1 . . . 2 . . . . . Investigation 11 | . 6 2 . 1 . 1 . . . 1 . . . . . Extermination . | . . . . . . . . . . . . . . . . Reinforcement 4 | . . 2 . 1 . . . . . 1 . . . . . Assault . | . . . . . . . . . . . . . . . . Garrison 2 | . . . . 2 . . . . . . . . . . . Intercept . | . . . . . . . . . . . . . . . . Searches Triggered . | . . . . . . . . . . . . . . . . Construction Impeded . | . . . . . . . . . . . . . . . . Haulers Reinforced . | . . . . . . . . . . . . . . . . Active Scanning Responses . | . . . . . . . . . . . . . . . . Cargo Convoy Interrupts . | . . . . . . . . . . . . . . . . Stealth | -11 -10 -9 -9 -8 -8 -8 -8 -7 -7 -7 -7 -6 -6 -5 -5 --------- Run | Yrd Mat Mat Min Mat Gar Mat Gar Fac Gar Fac Gar Fac Gar Fac Gar Distress Signals 10 | . 2 3 . 1 . 4 . . . . . . . . . Communications Jammed . | . . . . . . . . . . . . . . . . Distress Signals . | . . . . . . . . . . . . . . . . Times Spotted 350 | . 38 44 28 30 29 19 25 1 23 4 25 1 71 . 12 Peak Tracking Total 28 | . 4 7 20 5 5 6 7 1 5 2 8 . 28 . 6 Tactical Retreats 18 | . 1 1 2 2 1 3 1 . 1 . 1 . 5 . . Traps | -11 -10 -9 -9 -8 -8 -8 -8 -7 -7 -7 -7 -6 -6 -5 -5 ------- Run | Yrd Mat Mat Min Mat Gar Mat Gar Fac Gar Fac Gar Fac Gar Fac Gar Traps Triggered 14 | . 2 1 . 1 3 1 1 . 1 . 3 . 1 . . Indirectly . | . . . . . . . . . . . . . . . . Trap Hack Attempts . | . . . . . . . . . . . . . . . . Triggered . | . . . . . . . . . . . . . . . . Disarmed . | . . . . . . . . . . . . . . . . Reprogrammed . | . . . . . . . . . . . . . . . . Reused . | . . . . . . . . . . . . . . . . Traps Extracted . | . . . . . . . . . . . . . . . . Installed . | . . . . . . . . . . . . . . . . Triggered . | . . . . . . . . . . . . . . . . Machines | -11 -10 -9 -9 -8 -8 -8 -8 -7 -7 -7 -7 -6 -6 -5 -5 ---------- Run | Yrd Mat Mat Min Mat Gar Mat Gar Fac Gar Fac Gar Fac Gar Fac Gar Machines Disabled 24 | . 2 3 2 . 4 . 7 . 2 . 2 . . . 2 Max in Single Turn 2 | . 2 1 1 . 1 . 2 . 1 . 1 . . . 1 Garrison Relay 9 | . . . . . 4 . 1 . 1 . 2 . . . 1 Phase Generator 1 | . . . . . . . 1 . . . . . . . . Machines Repaired . | . . . . . . . . . . . . . . . . Machines Dismantled 9 | . . . . . 2 . 3 . 1 . 2 . . . 1 Machines Sabotaged . | . . . . . . . . . . . . . . . . Overloaded Fab Kills . | . . . . . . . . . . . . . . . . Hacking | -11 -10 -9 -9 -8 -8 -8 -8 -7 -7 -7 -7 -6 -6 -5 -5 --------- Run | Yrd Mat Mat Min Mat Gar Mat Gar Fac Gar Fac Gar Fac Gar Fac Gar Machines Accessed 56 | . 10 13 . 12 2 2 1 1 3 5 1 3 1 1 1 Terminals 45 | . 8 11 . 10 2 1 1 . 3 4 1 2 1 . 1 Fabricators . | . . . . . . . . . . . . . . . . Repair Stations . | . . . . . . . . . . . . . . . . Recycling Units 3 | . 2 1 . . . . . . . . . . . . . Scanalyzers 2 | . . 1 . 1 . . . . . . . . . . . Garrison Access 6 | . . . . 1 . 1 . 1 . 1 . 1 . 1 . Total Hacks 242 | . 48 53 . 72 6 4 3 1 9 18 6 8 4 1 9 Successful 150 | . 34 35 . 54 3 1 1 1 2 6 2 4 2 1 4 Failed 91 | . 14 18 . 17 3 3 2 . 7 12 4 4 2 . 5 Catastrophic 12 | . . 3 . 2 . . . . 2 4 . 1 . . . Database Lockouts 1 | . . . . 1 . . . . . . . . . . . Manual 185 | . 27 46 . 61 5 3 3 . 9 14 6 2 2 . 7 Terminals 222 | . 39 50 . 69 6 3 3 . 9 17 6 7 4 . 9 Fabricators . | . . . . . . . . . . . . . . . . Repair Stations . | . . . . . . . . . . . . . . . . Recycling Units 11 | . 9 2 . . . . . . . . . . . . . Scanalyzers 2 | . . 1 . 1 . . . . . . . . . . . Garrison Access 7 | . . . . 2 . 1 . 1 . 1 . 1 . 1 . Terminal Hacks 86 | . 16 16 . 32 3 . 1 . 2 5 2 3 2 . 4 Record 4 | . 3 1 . . . . . . . . . . . . . Part Schematic 4 | . . . . 4 . . . . . . . . . . . Robot Schematic 1 | . . . . 1 . . . . . . . . . . . Robot Analysis 9 | . . 6 . 3 . . . . . . . . . . . Prototype ID Bank 10 | . 1 . . 9 . . . . . . . . . . . Level Access Points 1 | . . . . 1 . . . . . . . . . . . Emergency Access Points 4 | . . . . 1 1 . . . . . . . 1 . 1 Terminal Index 2 | . . 1 . 1 . . . . . . . . . . . Garrison Index 3 | . . . . 1 . . . . . 1 . 1 . . . Alert Level 10 | . 6 1 . 3 . . . . . . . . . . . Unreport Threat 22 | . 3 5 . 5 1 . . . 1 4 1 2 . . . Locate Traps 4 | . 1 1 . 2 . . . . . . . . . . . Registered Components 1 | . 1 . . . . . . . . . . . . . . Zone Layout 2 | . . 1 . 1 . . . . . . . . . . . Garrison Registry 7 | . 1 . . . 1 . 1 . 1 . 1 . 1 . 1 Patrol Navigation 1 | . . . . . . . . . . . . . . . 1 Security Stations 1 | . . . . . . . . . . . . . . . 1 Fabricator Hacks . | . . . . . . . . . . . . . . . . Repair Station Hacks . | . . . . . . . . . . . . . . . . Recycling Unit Hacks 1 | . 1 . . . . . . . . . . . . . . Retrieve Components 1 | . 1 . . . . . . . . . . . . . . Scanalyzer . | . . . . . . . . . . . . . . . . Garrison Access Hacks 7 | . . . . 2 . 1 . 1 . 1 . 1 . 1 . Unlock Access 6 | . . . . 1 . 1 . 1 . 1 . 1 . 1 . Coupler Status 1 | . . . . 1 . . . . . . . . . . . Unauthorized Hacks 53 | . 17 18 . 18 . . . . . . . . . . . Terminals 45 | . 12 16 . 17 . . . . . . . . . . . Track 4 | . . . . 4 . . . . . . . . . . . Botnet 14 | . 5 5 . 4 . . . . . . . . . . . Disrupt 3 | . . . . 3 . . . . . . . . . . . Operators 1 | . . . . 1 . . . . . . . . . . . Skim 23 | . 7 11 . 5 . . . . . . . . . . . Fabricators . | . . . . . . . . . . . . . . . . Repair Stations . | . . . . . . . . . . . . . . . . Recycling Units 6 | . 5 1 . . . . . . . . . . . . . Reject 1 | . 1 . . . . . . . . . . . . . . Recyclers 1 | . 1 . . . . . . . . . . . . . . Mask 2 | . 2 . . . . . . . . . . . . . . Tunnel 2 | . 1 1 . . . . . . . . . . . . . Scanalyzers 2 | . . 1 . 1 . . . . . . . . . . . Extract 2 | . . 1 . 1 . . . . . . . . . . . Garrison Access . | . . . . . . . . . . . . . . . . Data Cores Recovered 1 | . . . . . . . . . . 1 . . . . . Used 1 | . . . . . . . . . . 1 . . . . . Hacking Detections 44 | . 10 12 . 8 2 1 1 . 3 3 1 2 . . 1 Full Trace Events 5 | . 4 . . . . . . . . 1 . . . . . Feedback Events 1 | . 1 . . . . . . . . . . . . . . Corruption 1 | . 1 . . . . . . . . . . . . . . Feedback Blocked . | . . . . . . . . . . . . . . . . Robot Schematics Acquired 1 | . . . . 1 . . . . . . . . . . . Robots Built . | . . . . . . . . . . . . . . . . Authchips . | . . . . . . . . . . . . . . . . Time . | . . . . . . . . . . . . . . . . Total Robot Build Rating . | . . . . . . . . . . . . . . . . Part Schematics Acquired 9 | . . 5 . 4 . . . . . . . . . . . Parts Built . | . . . . . . . . . . . . . . . . Authchips . | . . . . . . . . . . . . . . . . Time . | . . . . . . . . . . . . . . . . Total Part Build Rating . | . . . . . . . . . . . . . . . . Parts Repaired . | . . . . . . . . . . . . . . . . Time . | . . . . . . . . . . . . . . . . Parts Recycled . | . . . . . . . . . . . . . . . . Recycled Matter . | . . . . . . . . . . . . . . . . Retrieved Matter . | . . . . . . . . . . . . . . . . Retrieved Components 9 | . 9 . . . . . . . . . . . . . . Parts Scanalyzed . | . . . . . . . . . . . . . . . . Part Schematics Acquired . | . . . . . . . . . . . . . . . . Parts Damaged . | . . . . . . . . . . . . . . . . Bothacking | -11 -10 -9 -9 -8 -8 -8 -8 -7 -7 -7 -7 -6 -6 -5 -5 ------------ Run | Yrd Mat Mat Min Mat Gar Mat Gar Fac Gar Fac Gar Fac Gar Fac Gar Used RIF Installer 5 | . . . . . 1 . . . 1 . 1 . 1 . 1 Coupler Efficiency 1 | . . . . . . . . . 1 . . . . . . Code Merge 1 | . . . . . . . . . . . . . 1 . . Signal Jammer 1 | . . . . . . . . . . . . . . . 1 Zone Cloak 1 | . . . . . . . . . . . 1 . . . . Robots Hacked 4 | . . . . . . . . . . . . . 4 . . Non-combat . | . . . . . . . . . . . . . . . . Combat 4 | . . . . . . . . . . . . . 4 . . Robot Hacks Applied 4 | . . . . . . . . . . . . . 4 . . overwrite_iff 3 | . . . . . . . . . . . . . 3 . . formatsys_high 1 | . . . . . . . . . . . . . 1 . . Relay Couplers Released 15 | . . . . . 6 . 2 . 2 . 4 . . . 1 Machine Destruction 15 | . . . . . 6 . 2 . 2 . 4 . . . 1 Attached 2 | . . . . . . . . . . . . . 1 . 1 Fabnet Peak Effective % . | . . . . . . . . . . . . . . . . Robots Rewired . | . . . . . . . . . . . . . . . . Allies Hacked . | . . . . . . . . . . . . . . . . Hacks Repelled . | . . . . . . . . . . . . . . . . Allies | -11 -10 -9 -9 -8 -8 -8 -8 -7 -7 -7 -7 -6 -6 -5 -5 -------- Run | Yrd Mat Mat Min Mat Gar Mat Gar Fac Gar Fac Gar Fac Gar Fac Gar Total Allies 4 | . . . . . . . . . . . . . 4 . . Largest Group 2 | . . . . . . . . . . . . . 2 . . Highest-Rated Group 58 | . . . . . . . . . . . . . 58 . . Highest-Rated Ally 47 | . . . . . . . . . . . . . 47 . . Total Orders . | . . . . . . . . . . . . . . . . Ally Attacks 9 | . . . . . . . . . . . . . 9 . . Total Damage 207 | . . . . . . . . . . . . . 207 . . Kills 1 | . . . . . . . . . . . . . 1 . . Allies Corrupted . | . . . . . . . . . . . . . . . . Allies Melted . | . . . . . . . . . . . . . . . . Intel | -11 -10 -9 -9 -8 -8 -8 -8 -7 -7 -7 -7 -6 -6 -5 -5 ------- Run | Yrd Mat Mat Min Mat Gar Mat Gar Fac Gar Fac Gar Fac Gar Fac Gar Robot Analysis Total 9 | . . 6 . 3 . . . . . . . . . . . Derelict Logs Recovered . | . . . . . . . . . . . . . . . . Drone Launches . | . . . . . . . . . . . . . . . . Drone Recoveries . | . . . . . . . . . . . . . . . . Exploration | -11 -10 -9 -9 -8 -8 -8 -8 -7 -7 -7 -7 -6 -6 -5 -5 ------------- Run | Yrd Mat Mat Min Mat Gar Mat Gar Fac Gar Fac Gar Fac Gar Fac Gar Turns Passed 8052 | 79 3125 1136 194 746 581 197 599 41 389 106 267 57 382 6 147 Spaces Moved 7786 | 36 1342 1862 287 969 770 277 685 72 406 207 260 108 378 12 115 Core 2 | 2 . . . . . . . . . . . . . . . Treads 1313 | 34 1279 . . . . . . . . . . . . . . Legs . | . . . . . . . . . . . . . . . . Wheels . | . . . . . . . . . . . . . . . . Hover . | . . . . . . . . . . . . . . . . Flight 6471 | . 63 1862 287 969 770 277 685 72 406 207 260 108 378 12 115 Fastest Speed 34 | 50 37 34 37 37 34 40 40 40 40 40 40 40 40 45 45 Average Speed 58 | 153 154 36 37 37 35 40 40 40 40 40 40 40 40 45 45 Slowest Speed 160 | 160 160 37 37 40 40 40 40 40 40 40 40 40 45 45 45 Overloaded Moves . | . . . . . . . . . . . . . . . . Propulsion Burnouts . | . . . . . . . . . . . . . . . . Robots Hopped 43 | . . 21 2 9 1 8 1 . . . . 1 . . . Cave-ins Triggered . | . . . . . . . . . . . . . . . . Exploration Rate (%) 44 | 3 97 95 61 72 70 33 74 4 70 8 52 5 48 1 15 Regions Visited 15 Branch Regions 1 Pre-discovered Areas 5 | . 2 3 . . . . . . . . . . . . . Known Exits Taken 9 | . 1 1 1 1 . 1 . 1 . 1 . 1 . 1 . Unknown Exits Taken 1 | 1 . . . . . . . . . . . . . . . Scrap Searched 1 | . . . 1 . . . . . . . . . . . . Spaces Dug 23 | . . . . . . . . . . 3 1 . 19 . . Terrain Destroyed 591 | . 90 140 102 60 . 11 6 . . 4 9 . 120 . 49 Melee . | . . . . . . . . . . . . . . . . Projectile 16 | . . . . . . 11 . . . 4 1 . . . . AOE 575 | . 90 140 102 60 . . 6 . . . 8 . 120 . 49 Terrain Rammed . | . . . . . . . . . . . . . . . . Walls Destroyed . | . . . . . . . . . . . . . . . . Machines Disabled . | . . . . . . . . . . . . . . . . Actions | -11 -10 -9 -9 -8 -8 -8 -8 -7 -7 -7 -7 -6 -6 -5 -5 --------- Run | Yrd Mat Mat Min Mat Gar Mat Gar Fac Gar Fac Gar Fac Gar Fac Gar Total 9940 | 51 2196 2094 343 1190 958 304 832 76 518 216 341 118 514 12 177 Wait 952 | . 690 61 28 91 11 3 15 . 7 . 4 . 20 . 22 Move 7696 | 35 1341 1822 282 953 767 261 682 72 405 207 259 106 377 12 115 Hop 37 | . . 18 2 7 1 7 1 . . . . 1 . . . Pick Up 17 | 3 2 3 . 1 4 . 2 . 1 . . . 1 . . Fast Attach 39 | 7 4 6 . 9 2 . 2 . 1 1 1 2 3 . 1 Attach 9 | . 1 2 . 1 . . . . . . . . 3 . 2 Detach 7 | . . 2 . 1 . . . . . . . . 2 . 2 Swap 80 | 1 10 23 6 7 12 . 8 . 3 . 6 . 2 . 2 Drop 52 | 2 6 15 . 9 10 . 3 . 3 . 1 1 2 . . Fire 630 | 3 112 112 18 71 48 25 48 4 59 8 34 1 62 . 25 Melee . | . . . . . . . . . . . . . . . . Ram . | . . . . . . . . . . . . . . . . Kick . | . . . . . . . . . . . . . . . . Crush . | . . . . . . . . . . . . . . . . Escape Stasis 107 | . . . . . 54 . 13 . 7 . 18 . 15 . . Rewire 1 | . . . . . . . . . . . . . 1 . . Trap . | . . . . . . . . . . . . . . . . Miscellaneous 313 | . 30 30 7 40 49 8 58 . 32 . 18 7 26 . 8 Route ------- -11/Scrapyard -10/Materials (discovered 5 exits: *Mat x3 / *Min / *Sub) -9/Materials (discovered 4 exits: *Mat x3 / *Min) -9/Mines (discovered 2 exits: *Mat x2) -8/Materials (discovered 5 exits: *Fac x3 / *Sto / Gar) -8/Garrison (discovered 3 exits: *Mat x3) -8/Materials (discovered 2 exits: *Fac / Gar) -8/Garrison (discovered 3 exits: *Fac x3) -7/Factory (discovered 4 exits: Fac x2 / Low / Gar) -7/Garrison (discovered 3 exits: *Fac x3) -7/Factory (discovered 3 exits: *Fac / *Low / Gar) -7/Garrison (discovered 3 exits: *Fac x3) -6/Factory -6/Garrison (discovered 4 exits: *Fac x3 / [Fac]) -5/Factory -5/Garrison (discovered 3 exits: [Fac x3]) History --------- Turn | Location | Event 1 | -11/Scrapyard | Upgraded with Propulsion slot (x1) 1 | -11/Scrapyard | Upgraded with Utility slot (x1) 1 | -11/Scrapyard | Upgraded with Weapon slot (x1) 20 | -11/Scrapyard | Discovered new exit (range 16) 80 | -11/Scrapyard | Entered Materials 262 | -10/Materials | Discovered new exit (range 10) 308 | -10/Materials | Build established: Mutant 422 | -10/Materials | Discovered new exit (range 7) 1043 | -10/Materials | Discovered new exit (range 15) 1223 | -10/Materials | Reached level 2 1433 | -10/Materials | Discovered new exit (range 11) 1451 | -10/Materials | Identified exit to Materials 1451 | -10/Materials | Learned location of 1 exit from Materials 1496 | -10/Materials | Learned location of 2 exits from Subcaves 1522 | -10/Materials | Build established: Hacker-Mutant 1530 | -10/Materials | Identified exit to Mines 1552 | -10/Materials | Learned location of 2 exits from Mines 1564 | -10/Materials | Learned Storage trap positions 1607 | -10/Materials | Learned Storage trap positions 1868 | -10/Materials | Identified exit to Subcaves 3163 | -10/Materials | Reached level 3 3205 | -10/Materials | Entered another Materials area 3206 | -9/Materials | Identified exit to Materials 3207 | -9/Materials | Reached level 4 3365 | -9/Materials | Reached level 5 3394 | -9/Materials | Upgraded with Utility slot (x1) 3407 | -9/Materials | Discovered new exit (range 9) 3526 | -9/Materials | Core integrity fell below 50% 3529 | -9/Materials | Reached level 6 3566 | -9/Materials | Learned 4 Recycling zone layouts 3586 | -9/Materials | Discovered exit to Materials (range 5) 3589 | -9/Materials | Upgraded with Utility slot (x1) 3597 | -9/Materials | Loaded intel: 22 trap records 3629 | -9/Materials | Learned location of 1 exit from Storage 3642 | -9/Materials | Learned location of 2 exits from Materials 3663 | -9/Materials | Learned location of 2 exits from Materials 3692 | -9/Materials | Learned location of Zion (-6) 3796 | -9/Materials | Reached level 7 3830 | -9/Materials | Build established: Hacker-Scout 4213 | -9/Materials | Learned location of 1 exit from Storage 4340 | -9/Materials | Identified exit to Mines 4341 | -9/Materials | Entered Mines 4343 | -9/Mines | Reached level 8 4386 | -9/Mines | Met a Derelict bent on vengeance 4475 | -9/Mines | Assembled infested the area 4515 | -9/Mines | Destroyed 10 combat bots 4535 | -9/Mines | Entered Materials 4536 | -8/Materials | Identified exit to Factory 4536 | -8/Materials | Identified exit to Storage 4537 | -8/Materials | Reached level 9 4537 | -8/Materials | Upgraded with Utility slot (x1) 4560 | -8/Materials | Reached level 10 4893 | -8/Materials | Reached level 11 5060 | -8/Materials | Learned Factory trap positions 5101 | -8/Materials | Learned Factory non-interactive machine intel 5131 | -8/Materials | Learned location of 3 exits from Factory 5147 | -8/Materials | Central database locked down 5149 | -8/Materials | Garrison activated, responded to threat 5172 | -8/Materials | Learned location of 1 exit from Extension 5224 | -8/Materials | Learned Storage security intel 5253 | -8/Materials | Reached level 12 5281 | -8/Materials | Identified exit to Garrison 5281 | -8/Materials | Entered Garrison 5307 | -8/Garrison | Garrison Relay disabled 5319 | -8/Garrison | Triggered checkpoint 5394 | -8/Garrison | Triggered checkpoint 5447 | -8/Garrison | Destroyed 10 combat bots 5461 | -8/Garrison | Triggered checkpoint 5519 | -8/Garrison | Discovered new exit (range 71) 5519 | -8/Garrison | Discovered new exit (range 54) 5519 | -8/Garrison | Discovered new exit (range 13) 5543 | -8/Garrison | Installed Relay Interface Framework 5551 | -8/Garrison | Triggered checkpoint 5558 | -8/Garrison | Reached level 13 5569 | -8/Garrison | Build established: Hacker-Mutant 5579 | -8/Garrison | Garrison Relay disabled 5589 | -8/Garrison | Triggered checkpoint 5627 | -8/Garrison | Triggered checkpoint 5627 | -8/Garrison | Garrison Relay disabled 5665 | -8/Garrison | Identified exit to Materials 5671 | -8/Garrison | Triggered checkpoint 5717 | -8/Garrison | Triggered checkpoint 5730 | -8/Garrison | Garrison Relay disabled 5862 | -8/Garrison | Entered Materials 5991 | -8/Materials | Discovered exit to Factory (range 5) 6059 | -8/Materials | Identified exit to Garrison 6059 | -8/Materials | Entered Garrison 6069 | -8/Garrison | Triggered checkpoint 6195 | -8/Garrison | Phase Generator disabled 6195 | -8/Garrison | Reached level 14 6215 | -8/Garrison | Triggered checkpoint 6260 | -8/Garrison | Spotted B-75 Beast 6279 | -8/Garrison | Destroyed B-75 Beast 6333 | -8/Garrison | Discovered exit to Factory (range 5) 6340 | -8/Garrison | Discovered exit to Factory (range 90) 6340 | -8/Garrison | Discovered exit to Factory (range 12) 6340 | -8/Garrison | Discovered exit to Factory (range 66) 6381 | -8/Garrison | Triggered checkpoint 6420 | -8/Garrison | Triggered checkpoint 6452 | -8/Garrison | Destroyed 8 combat bots 6483 | -8/Garrison | Triggered checkpoint 6496 | -8/Garrison | Garrison Relay disabled 6658 | -8/Garrison | Entered Factory 6659 | -7/Factory | Identified exit to Factory 6659 | -7/Factory | Identified exit to Lower Caves 6660 | -7/Factory | Loaded intel: 110 trap records 6660 | -7/Factory | Reached level 15 6661 | -7/Factory | Loaded intel: 231 non-interactive machine locations 6699 | -7/Factory | Identified exit to Garrison 6699 | -7/Factory | Entered Garrison 6710 | -7/Garrison | Discovered new exit (range 69) 6710 | -7/Garrison | Discovered new exit (range 44) 6710 | -7/Garrison | Discovered new exit (range 43) 6719 | -7/Garrison | Triggered checkpoint 6843 | -7/Garrison | Triggered checkpoint 6909 | -7/Garrison | Garrison Relay disabled 6943 | -7/Garrison | Triggered checkpoint 6963 | -7/Garrison | Reached level 16 7019 | -7/Garrison | Expanded RIF knowledge: Coupler Efficiency 7022 | -7/Garrison | Destroyed 10 combat bots 7033 | -7/Garrison | Triggered checkpoint 7078 | -7/Garrison | Identified exit to Factory 7088 | -7/Garrison | Entered Factory 7142 | -7/Factory | Discovered exit to Factory (range 16) 7150 | -7/Factory | Discovered exit to Lower Caves (range 14) 7194 | -7/Factory | Identified exit to Garrison 7194 | -7/Factory | Entered Garrison 7204 | -7/Garrison | Triggered checkpoint 7237 | -7/Garrison | Garrison Relay disabled 7251 | -7/Garrison | Expanded RIF knowledge: Zone Cloak 7342 | -7/Garrison | Triggered checkpoint 7354 | -7/Garrison | Destroyed 15 combat bots 7356 | -7/Garrison | Discovered exit to Factory (range 10) 7366 | -7/Garrison | Triggered checkpoint 7394 | -7/Garrison | Build established: Wizard-Mutant 7410 | -7/Garrison | Garrison Relay disabled 7434 | -7/Garrison | Triggered checkpoint 7448 | -7/Garrison | Discovered exit to Factory (range 44) 7448 | -7/Garrison | Discovered exit to Factory (range 35) 7448 | -7/Garrison | Discovered exit to Factory (range 28) 7461 | -7/Garrison | Entered Factory 7463 | -6/Factory | Reached level 17 7463 | -6/Factory | Upgraded with Weapon slot (x1) 7469 | -6/Factory | Reached level 18 7518 | -6/Factory | Identified exit to Garrison 7518 | -6/Factory | Entered Garrison 7542 | -6/Garrison | Triggered checkpoint 7600 | -6/Garrison | Triggered checkpoint 7678 | -6/Garrison | Triggered checkpoint 7684 | -6/Garrison | Triggered checkpoint 7692 | -6/Garrison | Core integrity fell below 50% 7725 | -6/Garrison | Triggered checkpoint 7730 | -6/Garrison | Lost 3 parts (1u2w) 7746 | -6/Garrison | Destroyed 10 combat bots 7764 | -6/Garrison | Assembled breached garrison interior 7777 | -6/Garrison | Core integrity fell below 20% 7809 | -6/Garrison | Destroyed 42 combat bots 7823 | -6/Garrison | Discovered new exit (range 39) 7823 | -6/Garrison | Discovered new exit (range 54) 7823 | -6/Garrison | Discovered new exit (range 20) 7823 | -6/Garrison | Discovered new exit (range 24) 7841 | -6/Garrison | Expanded RIF knowledge: Code Merge 7841 | -6/Garrison | Reached level 19 7899 | -6/Garrison | Identified exit to Factory 7900 | -6/Garrison | Entered Factory 7901 | -5/Factory | Core integrity fell below 50% 7902 | -5/Factory | Reached level 20 7906 | -5/Factory | Upgraded with Utility slot (x1) 7906 | -5/Factory | Identified exit to Garrison 7906 | -5/Factory | Entered Garrison 7918 | -5/Garrison | Triggered checkpoint 7926 | -5/Garrison | Core integrity fell below 20% 7944 | -5/Garrison | Expanded RIF knowledge: Signal Jamming 7954 | -5/Garrison | Garrison Relay disabled 7976 | -5/Garrison | Triggered checkpoint 7976 | -5/Garrison | Triggered checkpoint 7981 | -5/Garrison | Reached level 21 7983 | -5/Garrison | Spotted B-75 Beast 7986 | -5/Garrison | Discovered new exit (range 51) 7986 | -5/Garrison | Discovered new exit (range 56) 7986 | -5/Garrison | Discovered new exit (range 33) 7986 | -5/Garrison | Learned Factory security intel 8023 | -5/Garrison | Destroyed 10 combat bots 8043 | -5/Garrison | Lost 3 parts (1p1u1w) 8053 | -5/Garrison | Destroyed by B-75 Beast with Heavy Machine Gun Last Messages --------------- >>Download(Security) Retrieving Factory security records... Downloaded coordinate data. Data stored: Factory security intel. 07987_ The unstable cave ceiling collapses. 07994_ G-50 Soldier destroyed. 07997_ The unstable cave ceiling collapses. 07998_ Destroyed Lgt. Angular Momentum Engine. 07998_ Destroyed Carbon-fiber Leg. 08002_ G-50 Soldier destroyed. 08009_ Relay Coupler [Grunt] destroyed. 08012_ The unstable cave ceiling collapses. 08012_ Imp. Remote Datajack destroyed. 08014_ The unstable cave ceiling collapses. 08023_ Knocked back. 08024_ Acquired 14 matter. 08026_ The unstable cave ceiling collapses. 08046_ Knocked back. 08048_ The unstable cave ceiling collapses. [Achievement: Overachiever] Map ----- +----------------------------------------------------+ | #???# #???# ########## #???#### ####### #??? | | #?###+###?# #????????# #???# + + + #??? | | #?#!! //#?# #????????# #???# ## ####### #??? | | #?#!! //#?# #????????# #####+## #?????# #??? | | ### ### #????????# ## ## #?????# #??? | | +^ ^+ #????????# ##""""## #?????# #??? | | #### ### ########## ####### #### | | ???#!! //#?# + | | ???#!! //#?####### #### | | ???###+###???????# #?? ## ## ############# | | ?????# #?????????# #### # ## ###?????????# | | ?????###?????????# # " #?????????# | | ?????????????????#### " #?????????# | | ????????????????????# " #?????????? | | ????????????????????# ^^ " #?????????? | | ???????????????????#### ##^^^^## ###?????????? | | ???????????????????# # ## ############# | | ##???????????????#### # ^^ + | | "#???????????????# BB ^^ + | | ##############???# # # BB ^^ ######## ### | | #???# # # ## ##??????# #?? | | ###### % ### #???# ## # # ## #???????# #?? | | ?????#* #?# ##### ### ####### #???????# #?? | | ?????##+##?# + ##???# #???????# #?? | | ??????# #??# ##### ## ##???# #???????# #?? | | ??????# #??# #???# # # @ ##???# #???????# #?? | | ??##### #??# #???# "?# # #????# #???????# #?? | | ??# ## #### #####+#### %# #????# ###?????# #?? | | ??## + + ####???# " #?????# #?? | | ???###### #???# " #?????# #?? | | ????????# #######+## ## #???# " #?????# #?? | | ????????# #?????# ## ### "###?### ###?????# #?? | | ????????# #?????# ## #?# T#???#"# ##??????# #?? | | ????????# #?????# ## #?#""#???#" T#??????# #?? | | ????????# ####### ## #?####???#" ##??????# #?? | | ????????# + ## #????????#" #???????# #?? | | ????????# ########## #????????#"# #???????# #?? | | ??????### #????##### #####????######???????# ### | | ??????# #????#"""" """"#?????????????????# | | ??????# #????#" ^ "#?????????????????# | | ??????# #????#"""" """"#?????????????????###### | | ??????######????#""""^""""#??????????????????????? | | ????????????????#" "#??????????????????????? | | ????????????????#"""" """"#??????????????????????? | | ????????????????###########??????????????????????? | | ?????????????????????????????????????????????????? | | ?????????????????????????????????????????????????? | | ?????????????????????????????????????????????????? | | ?????????????????????????????????????????????????? | | ?????????????????????????????????????????????????? | +----------------------------------------------------+ Best States ------------- Heat Dissipation 79 Energy Generation 28 Energy Capacity 315 Matter Stores 300 Matter Capacity 300 Sight Range 16 Robot Scan Range 19 Terrain Scan Range 16 Terrain Scan Density 210 Armor Coverage 150 Resistance: KI 15 Resistance: TH 15 Evasion (%) 63 Targeting Accuracy 20 Recoil Reduction 2 Particle Charging 15 Offensive Hacking 40 Defensive Hacking 25 Relay Coupler Types 1 Relay Coupler Value 104 Item Schematics ----------------- Imp. Medium Laser | -9/Materials | Extracted Signal Interpreter | -9/Materials | Extracted Hvy. Assault Rifle | -9/Materials | Extracted Imp. Aluminum Leg | -9/Materials | Extracted Lrg. Matter Pod | -9/Materials | Extracted Pulse Rifle | -8/Materials | Hacked Rocket Launcher | -8/Materials | Hacked Hacking Suite | -8/Materials | Hacked Actuator Array | -8/Materials | Extracted Robot Schematics ------------------ G-47 Trooper | -8/Materials | Hacked Fabricated ------------ Nothing Alien Tech Used ----------------- None Achievements -------------- Boltbath Killing Spree Overachiever Quick And Dirty Challenges ------------ None RPGLIKE | -11 -10 -9 -9 -8 -8 -8 -8 -7 -7 -7 -7 -6 -6 -5 -5 --------- Run | Yrd Mat Mat Min Mat Gar Mat Gar Fac Gar Fac Gar Fac Gar Fac Gar Levels Raised 20 | . 2 4 1 4 1 . 1 1 1 . . 2 1 1 1 XP Earned 33325 | 3000 3325 7166 1407 4688 2063 547 992 1065 1594 . 1150 1603 1472 1500 1753 XP Spent 31135 | 2850 3110 5960 1290 6200 1500 . 1550 1225 1800 . . 2810 1140 1700 . Upgrades 74 | 7 11 18 2 12 3 . 3 3 4 . . 6 4 1 . Propulsion Slot 1 | 1 . . . . . . . . . . . . . . . Utility Slot 5 | 1 . 2 . 1 . . . . . . . . . 1 . Weapon Slot 2 | 1 . . . . . . . . . . . 1 . . . Core Integrity 16 | . 4 8 . . . . . . 2 . . . 2 . . Heat Dissipation 9 | . . 3 . 5 . . . . . . . 1 . . . Energy Generation 2 | . . . . 2 . . . . . . . . . . . Energy Storage 1 | . 1 . . . . . . . . . . . . . . Mass Support 3 | . 2 . . 1 . . . . . . . . . . . Inventory Capacity 5 | 2 1 . . 1 . . 1 . . . . . . . . Sensor Range 2 | . . . . . . . . 2 . . . . . . . Terrain Scan Density 2 | . . 1 1 . . . . . . . . . . . . Ranged Accuracy 5 | . . 1 . 2 . . . . 2 . . . . . . Hack Attack % 6 | 2 1 2 1 . . . . . . . . . . . . Hack Defense % 3 | . 2 1 . . . . . . . . . . . . . KI Resistance % 3 | . . . . . . . 1 . . . . 2 . . . TH Resistance % 3 | . . . . . . . 1 . . . . 2 . . . TH Damage % 4 | . . . . . 3 . . 1 . . . . . . . EX Damage % 2 | . . . . . . . . . . . . . 2 . . Protomatter Created 2438 | . 265 265 50 305 429 131 230 . 342 . 139 52 165 . 65 Integrity Restored 5363 | . 632 678 129 827 842 169 415 . 618 . 258 156 558 . 81 Core 4708 | . 568 678 129 599 663 122 278 . 618 . 258 156 558 . 81 Parts 655 | . 64 . . 228 179 47 137 . . . . . . . . Protomatter Decayed 439 | . 36 37 . 24 109 25 102 . 88 . . . 18 . . Game ------ Seed HardenedSurgeTrident Manual? 0 Play Time 01:33:10 Cumulative 43.3 hours Start 2024.09.25 @ 01:22:19 End 2024.09.25 @ 14:56:44 Sessions 3 Manual Loads 0 Difficulty Rogue Special Mode Winter2019/RPGLIKE Game No. 55 Rogue 55 Adventurer 0 Explorer 0 Win Type - Total 1 Types 1/0/0/0/0/0/0/0/0 Lore% 34 Gallery% 47 Achievement% 51 Wizard Run 0 Options --------- Layout 1 ASCII 0 Keyboard 0 Movement Mouse Keybinds 0 Fullscreen 1 Font 20/SmallcapsGlow Map View 54x42 Zoom Use 0% Tactical HUD 1 Map Filters NONE Filters NONE Steam 1 RUN: bbbae6a8-1805-4432-82fa-0e7c418f8ae0